fUSD/lending_fUSD_20240902
["ID","MTS","AMOUNT","RATE_DAILY","PERIOD"]
[336978481,1725273040688,-863.27409701,0.00013,2]
[336978495,1725273040814,-517.05379565,0.00013,2]
[336978758,1725273043567,-507.54,0.00013,2]
[336978782,1725273043747,-714.36,0.00013,2]
[336979039,1725273046550,-505.54042851,0.00013,2]
[336979040,1725273046629,-355.99679615,0.00013,2]
[336979042,1725273046641,-2934.05,0.00013,2]
[336979361,1725273062712,215.18,0.00010959,2]
[336979362,1725273073461,209.85,0.00010959,2]
[336979363,1725273083997,200.33,0.00010959,2]
[336979364,1725273094705,166.94,0.00010959,2]
[336979365,1725273105487,834.74,0.00010959,2]
[336979366,1725273198787,164.0,0.00010959,2]
[336979368,1725273222049,-1374.59303352,0.00012925,2]
[336979369,1725273222072,-300.0,0.00012999,2]
[336979370,1725273222097,-23325.40696648,0.00013,2]
[336979371,1725273222526,-25000.0,0.00013,2]
[336979372,1725273244276,-303.15021677,0.00012925,2]
[336979373,1725273244302,-300.0,0.00012999,2]
[336979374,1725273244328,-4620.08818228,0.00013,2]
[336979375,1725273262152,-35805.76160095,0.00013,2]
[336979376,1725273294336,-2398.0,0.00013,2]
[336979377,1725273311809,291.45,0.00010959,2]
[336979378,1725273322350,242.87,0.00010959,2]
[336979379,1725273333141,202.39,0.00010959,2]
[336979380,1725273343729,168.66,0.00010959,2]
[336979381,1725273354278,843.33,0.00010959,2]
[336979382,1725273393809,1500.0,0.000129,30]
[336979383,1725273697065,157.07,0.00010959,2]
[336979389,1725274026942,550.0,0.00011,2]
[336979403,1725274145087,150.83834665,0.00010945,2]
[336979408,1725274207650,157.03,0.00010959,2]
[336979415,1725274231639,-455.22,0.00011861,2]
[336979416,1725274231650,-4741.4830767,0.0001283,30]
[336979417,1725274231662,-1780.12337032,0.0001283,30]
[336979418,1725274231671,-1653.89832164,0.0001287,2]
[336979419,1725274231682,-172.70431108,0.000129,2]
[336979420,1725274231691,-916.39535568,0.000129,2]
[336979421,1725274231701,-1540.43700174,0.000129,2]
[336979422,1725274231711,-303.15021676,0.000129,2]
[336979423,1725274231720,-1686.9255601,0.000129,2]
[336979424,1725274231733,-265.434379,0.00012921,2]
[336979425,1725274231742,-157.14338454,0.00012973,2]
[336979426,1725274231751,-500.0,0.00012973,2]
[336979427,1725274231760,-159.24991364,0.00012973,2]
[336979428,1725274231770,-150.64,0.0001299,2]
[336979429,1725274231779,-150.64,0.0001299,2]
[336979430,1725274231789,-150.64,0.0001299,2]
[336979431,1725274231798,-150.64,0.0001299,2]
[336979432,1725274231809,-150.64,0.0001299,2]
[336979433,1725274231818,-150.64,0.0001299,2]
[336979434,1725274231827,-150.64,0.0001299,2]
[336979435,1725274231837,-150.64,0.0001299,2]
[336979436,1725274231846,-4670.77087705,0.00013,2]
[336979437,1725274234908,-15372.11072017,0.00013,2]
[336979438,1725274234920,-2965.35135302,0.00013,2]
[336979439,1725274234961,-660.81574573,0.00013,2]
[336979440,1725274235010,-477.51438576,0.00013,2]
[336979441,1725274235022,-1072.92778133,0.00013,2]
[336979442,1725274235033,-442.78390852,0.00013,2]
[336979443,1725274235044,-5324.66118422,0.00013,2]
[336979444,1725274235085,-348.26422483,0.00013,2]
[336979447,1725274235202,-284.80149463,0.00013,2]
[336979448,1725274235213,-177888.59520922,0.00013,2]
[336979463,1725274237698,-441.66001173,0.00013,2]
[336979464,1725274237710,-1839.93992941,0.00013,2]
[336979465,1725274237834,-259.50500239,0.00013,2]
[336979466,1725274237845,-384.30158449,0.00013,2]
[336979467,1725274237876,-78192.71671266,0.00013,2]
[336979468,1725274237888,-570.23685725,0.00013,2]
[336979469,1725274237899,-1089.05208853,0.00013,2]
[336979470,1725274237911,-1311.79134232,0.00013,2]
[336979471,1725274237924,-3112.98703271,0.00013,2]
[336979472,1725274237934,-946735.71138724,0.00013,2]
[336979649,1725274239878,-83753.99677017,0.00013,2]
[336979651,1725274239889,-514292.80080749,0.00013,2]
[336979656,1725274239924,-389.44550813,0.00013,2]
[336979672,1725274240066,-193618.13063789,0.00013,2]
[336979929,1725274242734,-348.82599169,0.00013,2]
[336980057,1725274245619,-477.13127268,0.000129,2]
[336980058,1725274245789,-2936.65,0.000129,2]
[336984372,1725274376437,-1718.84871046,0.00012699,2]
[336984373,1725274376459,-3281.15128954,0.000127,4]
[336984374,1725274381706,-618.84871046,0.000127,4]
[336984375,1725274381728,-4381.15128954,0.000128,4]
[336984376,1725274387700,-3418.84871046,0.000128,4]
[336984377,1725274387721,-524.14844,0.0001287,2]
[336984378,1725274387742,-300.0,0.00012899,2]
[336984379,1725274387761,-757.00284954,0.000129,4]
[336984380,1725274393773,-5000.0,0.000129,4]
[336984381,1725274408434,-4500.0,0.000129,4]
[336984545,1725274453796,-1442.99715046,0.000129,4]
[336984546,1725274453816,-303.53383541,0.000129,2]
[336984547,1725274453836,-307.49500761,0.000129,2]
[336984548,1725274453856,-256.3785692,0.000129,2]
[336984549,1725274453874,-500.0,0.00012973,2]
[336984550,1725274453895,-244.96443001,0.00012997,2]
[336984551,1725274453918,-506.25091406,0.00012997,2]
[336984552,1725274453938,-150.0,0.00012999,2]
[336984553,1725274453958,-300.0,0.00012999,2]
[336984554,1725274453977,-988.38009325,0.00013,2]
[336984555,1725274462718,-3300.0,0.00013,2]
[336984556,1725274504003,-638.82,0.0001172,2]
[336984557,1725274504026,-1411.18,0.00013,2]
[336984559,1725274691847,156.52,0.00010959,2]
[336984997,1725275270153,157.2,0.00010959,2]
[336985053,1725275392663,-171.0,0.00011002,2]
[336985054,1725275392694,-450.57071479,0.00011003,2]
[336985068,1725275431732,-156.29928521,0.00011003,2]
[336985069,1725275431742,-208.06,0.00012,2]
[336985070,1725275431751,-127.98489289,0.00012217,2]
[336985071,1725275431763,-122.01510711,0.00012217,2]
[336985072,1725275431772,-1458.12,0.00012261,2]
[336985073,1725275431782,-907.51,0.00012317,2]
[336985074,1725275431791,-735.6,0.00012563,2]
[336985075,1725275431800,-2638.22,0.00012613,2]
[336985076,1725275431810,-150.39,0.00012627,2]
[336985077,1725275431819,-400.0,0.00012647,2]
[336985078,1725275431828,-200.0,0.00012657,2]
[336985079,1725275431838,-294.04,0.00012657,2]
[336985080,1725275431847,-499.99,0.00012657,2]
[336985081,1725275431857,-181.08,0.00012694,2]
[336985082,1725275431867,-300.0,0.00012699,2]
[336985083,1725275431876,-2700.0,0.000127,4]
[336985084,1725275431886,-300.0,0.000127,4]
[336985085,1725275431896,-5500.0,0.000128,4]
[336985086,1725275431907,-700.0,0.000128,4]
[336985087,1725275431917,-1181.57097,0.0001287,2]
[336985088,1725275431926,-104.55042489,0.000129,4]
[336985089,1725275431943,-8095.44957511,0.000129,4]
[336985090,1725275431952,-1100.0,0.000129,4]
[336985091,1725275431964,-164.14081489,0.000129,2]
[336985092,1725275431980,-246.92250981,0.00012973,2]
[336985093,1725275431989,-500.0,0.00012973,2]
[336985094,1725275431999,-150.64,0.0001299,2]
[336985095,1725275432010,-150.64,0.0001299,2]
[336985096,1725275432019,-2743.21201365,0.00013,2]
[336985097,1725275432031,-3137.9348,0.00013,2]
[336985098,1725275432045,-308.06435349,0.00013,2]
[336985099,1725275432057,-114784.40868956,0.00013,2]
[336985100,1725275432073,-630.72485742,0.00013,2]
[336985101,1725275432084,-1284.40976051,0.00013,2]
[336985102,1725275432095,-405.84115355,0.00013,2]
[336985114,1725275438166,-5901.89999999,0.00013,2]
[336985115,1725275438177,-43409.5468226,0.00013,2]
[336985116,1725275438188,-1171.46,0.00013,2]
[336985134,1725275440319,-96.60015233,0.00013,2]
[336985136,1725275440432,-63644.99609282,0.00013,2]
[336985212,1725275446031,-5078.70888371,0.00013,2]
[336985229,1725275522317,-303.53383541,0.000129,2]
[336985230,1725275522341,-2453.44422225,0.000129,2]
[336985231,1725275522365,-269.05813165,0.000129,2]
[336985232,1725275522390,-300.0,0.00012999,2]
[336985233,1725275522414,-1673.96381069,0.00013,2]
[336985234,1725275723182,426.88,0.00027,120]
[336985236,1725275753644,183.87,0.00010959,2]
[336985237,1725275829471,550.0,0.00011,2]
[336985238,1725276103134,685.67,0.0001043,2]
[336985239,1725276148390,-192.14261377,0.00012293,2]
[336985240,1725276148415,-150.0,0.00012393,2]
[336985241,1725276148437,-501.89,0.00012393,2]
[336985242,1725276148460,-3955.96738623,0.00012457,2]
[336985243,1725276174934,15500.0,0.00025,61]
[336985244,1725276294584,164.0,0.00010959,2]
[336985245,1725276308435,13433.26531157,0.0001099,2]
[336985247,1725276350636,2542.27099863,0.00010988,2]
[336985271,1725276479763,91039.19851191,0.00010999,2]
[336985376,1725276631892,-300.0,0.00011874,2]
[336985377,1725276631902,-851.55012815,0.00011875,2]
[336985379,1725276631918,-1007.07587274,0.00011875,2]
[336985392,1725276631978,-471.9509302,0.00011875,2]
[336985395,1725276631990,-3128.4253,0.00011875,2]
[336985397,1725276632005,-791.24822385,0.00011875,2]
[336985400,1725276632017,-441.93854479,0.00011875,2]
[336985405,1725276632070,-431.36387479,0.00011875,2]
[336985407,1725276632128,-6375.15712548,0.00011875,2]
[336985422,1725276632400,-250.0,0.00011893,2]
[336985423,1725276632410,-200.0,0.00011895,2]
[336985424,1725276632419,-948.99,0.00011991,2]
[336985426,1725276632430,-823.18217029,0.00012109,2]
[336985427,1725276632442,-528.69782971,0.00012109,2]
[336985429,1725276632452,-250.0,0.00012109,2]
[336985430,1725276632460,-163.35,0.00012158,2]
[336985431,1725276632469,-599.0436255,0.00012305,2]
[336985433,1725276632484,-2977.63233919,0.00012305,2]
[336985577,1725276638387,-2615.48403531,0.00012305,2]
[336985578,1725276638398,-2450.0573363,0.00012308,2]
[336985579,1725276638410,-8988.9026637,0.00012308,2]
[336985580,1725276638419,-150.39,0.00012363,2]
[336985581,1725276638429,-200.0,0.00012495,2]
[336985582,1725276638438,-2828.62,0.00012495,2]
[336985583,1725276638448,-155.87,0.00012508,2]
[336985584,1725276638457,-320.0,0.00012539,2]
[336985585,1725276638466,-250.0,0.00012564,2]
[336985586,1725276638475,-685.67,0.00012694,2]
[336985587,1725276638485,-2200.0,0.000127,4]
[336985588,1725276638494,-4400.0,0.000128,4]
[336985589,1725276638504,-150.0,0.00012869,2]
[336985590,1725276638515,-984.64248,0.0001287,2]
[336985591,1725276638524,-2240.75862759,0.000129,2]
[336985592,1725276638534,-6600.0,0.000129,4]
[336985593,1725276638543,-176.7625708,0.000129,2]
[336985594,1725276638552,-235.42586522,0.000129,2]
[336985595,1725276638561,-167.04517258,0.00012925,2]
[336985596,1725276638570,-610.93023712,0.00012925,2]
[336985597,1725276638579,-434.37047462,0.00012925,2]
[336985598,1725276638589,-158.0939784,0.00012973,2]
[336985599,1725276638598,-2477.18965681,0.0001298,2]
[336985600,1725276638607,-161.77,0.0001299,2]
[336985601,1725276638617,-161.77,0.0001299,2]
[336985602,1725276638626,-161.77,0.0001299,2]
[336985603,1725276638635,-2905.53992136,0.00012997,2]
[336985604,1725276638644,-2944.9223518,0.00012998,2]
[336985605,1725276638656,-8355.461751,0.00012998,2]
[336985606,1725276638667,-701.0225482,0.00012998,2]
[336985607,1725276638676,-501.40207161,0.00012999,2]
[336985608,1725276638685,-36041.66962919,0.00013,2]
[336985609,1725276638697,-6082.39880002,0.00013,2]
[336985615,1725276640424,-25542.18993968,0.00013,2]
[336985616,1725276640437,-1770.695,0.00013,2]
[336985619,1725276640489,-43.73953465,0.00013,2]
[336985621,1725276640500,-1831349.04720368,0.00013,2]
[336985623,1725276640510,-300.0,0.00013,2]
[336985625,1725276640519,-2000.0,0.00013,2]
[336985627,1725276640529,-200.0,0.00013,2]
[336985629,1725276640539,-600.0,0.00013,2]
[336985631,1725276640549,-146793.00439718,0.00013,2]
[336985633,1725276640559,-799611.50467213,0.00013,2]
[336985635,1725276640568,-150.56267527,0.00013025,2]
[336985637,1725276640578,-420.0,0.00013037,2]
[336985639,1725276640587,-164.21,0.00013052,2]
[336985641,1725276640596,-150.0,0.00013058,2]
[336985643,1725276640605,-179.72,0.00013087,2]
[336985645,1725276640615,-150.0,0.00013101,2]
[336985647,1725276640625,-499.99,0.00013122,2]
[336985649,1725276640636,-2000.0,0.0001313,2]
[336985651,1725276640648,-200.0,0.0001313,2]
[336985653,1725276640657,-150.0,0.00013146,2]
[336985655,1725276640667,-173.71950903,0.00013155,2]
[336985657,1725276640676,-150.0,0.00013175,2]
[336985659,1725276640686,-150.0,0.00013191,2]
[336985661,1725276640697,-150.0,0.00013211,2]
[336985663,1725276640706,-150.0,0.00013214,2]
[336985665,1725276640715,-2000.0,0.00013261,2]
[336985667,1725276640725,-200.0,0.00013261,2]
[336985669,1725276640735,-680.0,0.00013372,2]
[336985671,1725276640744,-984.64248,0.0001339,2]
[336985673,1725276640754,-2000.0,0.00013394,2]
[336985675,1725276640763,-200.0,0.00013394,2]
[336985678,1725276640776,-2000.0,0.00013528,2]
[336985679,1725276640785,-200.0,0.00013528,2]
[336985682,1725276640795,-2240.75862757,0.00013678,2]
[336985684,1725276640804,-163.35,0.00013678,2]
[336985685,1725276640814,-200.0,0.00013699,2]
[336985687,1725276640823,-2751.0,0.00013699,2]
[336985689,1725276640832,-119058.5412739,0.000138,2]
[336985691,1725276640842,-101796.069392,0.000138,3]
[336985693,1725276640851,-151.0,0.000138,2]
[336985695,1725276640861,-222265.563396,0.000139,3]
[336985697,1725276640870,-152.23596,0.000139,2]
[336985699,1725276640880,-235.42586518,0.000139,2]
[336985701,1725276640889,-150.0,0.00013976,2]
[336985704,1725276640899,-300.0,0.00014,2]
[336985705,1725276640908,-984.64248,0.0001402,2]
[336985708,1725276640918,-320.0,0.00014106,2]
[336985710,1725276640927,-587.0,0.00014313,2]
[336985711,1725276640936,-2240.75862757,0.00014456,2]
[336985713,1725276640945,-984.64248,0.0001465,2]
[336985715,1725276640954,-164.21,0.00014684,2]
[336985718,1725276640964,-230.13121913,0.00014717,2]
[336985720,1725276640973,-150.0,0.00014752,2]
[336985722,1725276640983,-150.0,0.00014757,2]
[336985724,1725276640992,-235.42586518,0.000149,2]
[336985726,1725276641001,-150.0,0.00014916,2]
[336985728,1725276641011,-150.0,0.00014941,2]
[336985730,1725276641020,-150.0,0.0001495,5]
[336985732,1725276641029,-150.0,0.0001495,5]
[336985734,1725276641038,-150.0,0.00014953,2]
[336985736,1725276641048,-685.67,0.00014958,2]
[336985738,1725276641058,-300.0,0.00015,3]
[336985739,1725276641067,-650.0,0.00015,2]
[336985742,1725276641076,-167.25,0.00015015,2]
[336985743,1725276641085,-680.0,0.00015043,2]
[336985745,1725276641095,-300.0,0.00015068,2]
[336985747,1725276641105,-163.35,0.00015198,2]
[336985749,1725276641115,-2240.75862757,0.00015233,2]
[336985751,1725276641124,-984.64248,0.0001527,2]
[336985753,1725276641133,-729.06,0.00015443,2]
[336985755,1725276641143,-320.0,0.00015674,2]
[336985757,1725276641152,-823.0,0.00015715,2]
[336985759,1725276641161,-167.01,0.00015831,2]
[336985761,1725276641170,-180.71,0.00015831,2]
[336985763,1725276641180,-181.08,0.00015867,2]
[336985765,1725276641189,-984.64248,0.0001589,2]
[336985767,1725276641198,-167.14,0.00015906,2]
[336985769,1725276641207,-166.99,0.00015906,2]
[336985771,1725276641216,-300.0,0.00016,4]
[336985773,1725276641225,-287.333225,0.00016,2]
[336985775,1725276641234,-287.333225,0.00016,2]
[336985777,1725276641244,-2240.75862757,0.00016011,2]
[336985779,1725276641253,-164.21,0.00016315,2]
[336985781,1725276641264,-610.9302371,0.00016413,2]
[336985783,1725276641283,-434.37047462,0.00016413,2]
[336985785,1725276641293,-1000.0,0.00016438,2]
[336985787,1725276641302,-1000.0,0.00016438,2]
[336985789,1725276641311,-1000.0,0.00016438,2]
[336985791,1725276641321,-1000.0,0.00016438,2]
[336985793,1725276641330,-1000.0,0.00016438,2]
[336985795,1725276641339,-1000.0,0.00016438,2]
[336985797,1725276641348,-1000.0,0.00016438,2]
[336985799,1725276641363,-500.39182696,0.00016438,2]
[336985801,1725276641372,-300.0,0.00016438,2]
[336985803,1725276641382,-160.14587518,0.000165,2]
[336985805,1725276641391,-680.0,0.00016715,2]
[336985807,1725276641401,-163.35,0.00016718,2]
[336985809,1725276641410,-166.99,0.00016781,2]
[336985811,1725276641419,-2240.75862757,0.00016789,2]
[336985813,1725276641428,-300.0,0.00017,4]
[336985815,1725276641438,-700.0,0.00017,2]
[336985817,1725276641448,-685.67,0.00017222,2]
[336985819,1725276641457,-320.0,0.00017241,2]
[336985821,1725276641467,-1152.0,0.00017254,2]
[336985823,1725276641476,-2240.75862757,0.00017567,2]
[336985825,1725276641486,-156.52,0.00017592,2]
[336985827,1725276641495,-166.99,0.00017656,2]
[336985829,1725276641505,-927.0,0.000178,2]
[336985831,1725276641519,-5296.0,0.000178,2]
[336985833,1725276641529,-1322.78877838,0.00017881,2]
[336985834,1725276641538,-164.21,0.00017947,2]
[336985836,1725276641547,-300.0,0.00018,5]
[336985838,1725276641557,-150.0,0.00018,2]
[336985840,1725276641566,-150.0,0.00018,2]
[336985842,1725276641575,-810.0,0.00018131,2]
[336985844,1725276641585,-572.601,0.00018131,2]
[336985846,1725276641594,-930.0,0.00018131,2]
[336985848,1725276641604,-150.0,0.00018131,2]
[336985850,1725276641613,-552.0,0.00018131,2]
[336985852,1725276641622,-1899.0,0.00018131,2]
[336985854,1725276641631,-1921.0,0.00018131,2]
[336985855,1725276641640,-248.0,0.00018131,2]
[336985857,1725276641649,-1139.0,0.00018131,2]
[336985858,1725276641660,-805.0,0.00018131,2]
[336985859,1725276641669,-3340.0,0.00018131,2]
[336985860,1725276641679,-1129.091,0.00018131,2]
[336985861,1725276641688,-150.0,0.00018131,2]
[336985862,1725276641697,-3732.0,0.00018131,2]
[336985863,1725276641707,-1545.0,0.00018131,2]
[336985864,1725276641716,-623.0,0.00018131,2]
[336985865,1725276641725,-5854.0,0.00018131,2]
[336985866,1725276641734,-1259.0,0.00018131,2]
[336985867,1725276641744,-13452.0,0.00018131,2]
[336985868,1725276641753,-163.35,0.00018238,2]
[336985869,1725276641762,-2240.75862757,0.00018344,2]
[336985870,1725276641772,-680.0,0.00018386,2]
[336985871,1725276641781,-167.01,0.00018444,2]
[336985872,1725276641790,-167.14,0.00018531,2]
[336985873,1725276641800,-166.99,0.00018531,2]
[336985874,1725276641809,-167.25,0.00018769,2]
[336985875,1725276641818,-320.0,0.00018808,2]
[336985876,1725276641828,-150.0,0.00018831,2]
[336985877,1725276641837,-151.0,0.000189,2]
[336985878,1725276641848,-1613.0,0.00018943,2]
[336985879,1725276641857,-300.0,0.00019,5]
[336985880,1725276641867,-750.0,0.00019,2]
[336985881,1725276641877,-1454.0,0.00019,2]
[336985882,1725276641886,-181.08,0.00019041,2]
[336985883,1725276641896,-2240.75862757,0.00019122,2]
[336985884,1725276641905,-1000.0,0.0001917,2]
[336985885,1725276641915,-1000.0,0.0001917,2]
[336985886,1725276641924,-1112.20645801,0.0001917,2]
[336985887,1725276641933,-160.047264,0.00019173,2]
[336985888,1725276641942,-158.56443465,0.00019173,2]
[336985889,1725276641952,-152.17139413,0.00019177,2]
[336985890,1725276641962,-340.91219285,0.00019178,2]
[336985891,1725276641971,-526.39344204,0.00019178,2]
[336985892,1725276641980,-500.0,0.00019178,2]
[336985893,1725276641989,-500.0,0.00019178,2]
[336985894,1725276641998,-500.0,0.00019178,2]
[336985895,1725276642007,-500.0,0.00019178,2]
[336985896,1725276642017,-500.0,0.00019178,2]
[336985897,1725276642026,-500.0,0.00019178,2]
[336985898,1725276642036,-500.0,0.00019178,2]
[336985899,1725276642045,-500.0,0.00019178,2]
[336985900,1725276642054,-500.0,0.00019178,2]
[336985901,1725276642063,-500.0,0.00019178,2]
[336985902,1725276642072,-500.0,0.00019178,2]
[336985903,1725276642082,-500.0,0.00019178,2]
[336985904,1725276642090,-500.0,0.00019178,2]
[336985905,1725276642099,-500.0,0.00019178,2]
[336985906,1725276642108,-500.0,0.00019178,2]
[336985907,1725276642117,-500.0,0.00019178,2]
[336985908,1725276642126,-500.0,0.00019178,2]
[336985909,1725276642135,-229.539999,0.00019178,2]
[336985910,1725276642144,-500.0,0.00019178,2]
[336985911,1725276642153,-500.0,0.00019178,2]
[336985912,1725276642162,-500.0,0.00019178,2]
[336985913,1725276642170,-500.0,0.00019178,2]
[336985914,1725276642181,-500.0,0.00019178,2]
[336985915,1725276642191,-500.0,0.00019178,2]
[336985916,1725276642201,-500.0,0.00019178,2]
[336985917,1725276642211,-500.0,0.00019178,2]
[336985918,1725276642220,-184.5,0.00019178,2]
[336985919,1725276642229,-151.0,0.00019178,2]
[336985920,1725276642239,-161.13521,0.00019178,2]
[336985921,1725276642249,-151.0,0.00019178,2]
[336985922,1725276642259,-1664.18,0.00019178,2]
[336985923,1725276642269,-1664.18,0.00019178,2]
[336985924,1725276642278,-1664.18,0.00019178,2]
[336985925,1725276642288,-1664.18,0.00019178,2]
[336985926,1725276642298,-1664.18,0.00019178,2]
[336985927,1725276642307,-1664.18,0.00019178,2]
[336985928,1725276642316,-1664.18,0.00019178,2]
[336985929,1725276642326,-1664.18,0.00019178,2]
[336985930,1725276642336,-1664.18,0.00019178,2]
[336985931,1725276642348,-590.65,0.00019178,2]
[336985932,1725276642362,-590.65,0.00019178,2]
[336985933,1725276642372,-590.65,0.00019178,2]
[336985934,1725276642381,-590.65,0.00019178,2]
[336985935,1725276642391,-590.65,0.00019178,2]
[336985936,1725276642401,-590.65,0.00019178,2]
[336985937,1725276642410,-590.65,0.00019178,2]
[336985938,1725276642419,-590.65,0.00019178,2]
[336985939,1725276642429,-590.65,0.00019178,2]
[336985940,1725276642438,-500.0,0.00019178,2]
[336985941,1725276642447,-500.0,0.00019178,2]
[336985942,1725276642456,-369.07427082,0.00019178,2]
[336985943,1725276642466,-500.0,0.00019178,2]
[336985944,1725276642476,-500.0,0.00019178,2]
[336985945,1725276642485,-500.0,0.00019178,2]
[336985946,1725276642495,-500.0,0.00019178,2]
[336985947,1725276642506,-500.0,0.00019178,2]
[336985948,1725276642516,-500.0,0.00019178,2]
[336985949,1725276642525,-500.0,0.00019178,2]
[336985950,1725276642535,-500.0,0.00019178,2]
[336985951,1725276642544,-500.0,0.00019178,2]
[336985952,1725276642554,-151.0,0.00019178,2]
[336985953,1725276642563,-816.18,0.00019178,2]
[336985954,1725276642573,-816.18,0.00019178,2]
[336985955,1725276642582,-816.18,0.00019178,2]
[336985956,1725276642591,-816.18,0.00019178,2]
[336985957,1725276642601,-816.18,0.00019178,2]
[336985958,1725276642610,-816.18,0.00019178,2]
[336985959,1725276642620,-816.18,0.00019178,2]
[336985960,1725276642629,-816.18,0.00019178,2]
[336985961,1725276642639,-816.18,0.00019178,2]
[336985962,1725276642648,-423.08160141,0.00019178,2]
[336985963,1725276642657,-500.0,0.00019178,2]
[336985964,1725276642667,-500.0,0.00019178,2]
[336985965,1725276642676,-151.0,0.00019178,2]
[336985966,1725276642686,-254.49727776,0.00019178,2]
[336985967,1725276642695,-151.0,0.00019178,2]
[336985968,1725276642705,-455.68713849,0.00019178,2]
[336985969,1725276642715,-500.0,0.00019178,2]
[336985970,1725276642724,-500.0,0.00019178,2]
[336985971,1725276642734,-500.0,0.00019178,2]
[336985972,1725276642743,-500.0,0.00019178,2]
[336985973,1725276642752,-500.0,0.00019178,2]
[336985974,1725276642761,-500.0,0.00019178,2]
[336985975,1725276642771,-500.0,0.00019178,2]
[336985976,1725276642780,-500.0,0.00019178,2]
[336985977,1725276642790,-500.0,0.00019178,2]
[336985978,1725276642799,-500.0,0.00019178,2]
[336985979,1725276642809,-500.0,0.00019178,2]
[336985980,1725276642819,-500.0,0.00019178,2]
[336985982,1725276642829,-467.04219907,0.00019178,2]
[336985983,1725276642838,-500.0,0.00019178,2]
[336985985,1725276642848,-500.0,0.00019178,2]
[336985986,1725276642858,-500.0,0.00019178,2]
[336985987,1725276642868,-151.412621,0.00019178,2]
[336985988,1725276642877,-500.0,0.00019178,2]
[336985989,1725276642887,-500.0,0.00019178,2]
[336985990,1725276642896,-500.0,0.00019178,2]
[336985991,1725276642905,-500.0,0.00019178,2]
[336985992,1725276642915,-500.0,0.00019178,2]
[336985993,1725276642924,-500.0,0.00019178,2]
[336985994,1725276642934,-561.13838992,0.00019178,2]
[336985995,1725276642943,-500.0,0.00019178,2]
[336985996,1725276642956,-500.0,0.00019178,2]
[336985997,1725276642965,-500.0,0.00019178,2]
[336985998,1725276642974,-537.26852968,0.00019178,2]
[336985999,1725276642983,-500.0,0.00019178,2]
[336986000,1725276642993,-500.0,0.00019178,2]
[336986001,1725276643002,-500.0,0.00019178,2]
[336986002,1725276643012,-500.0,0.00019178,2]
[336986003,1725276643021,-500.0,0.00019178,2]
[336986004,1725276643031,-500.0,0.00019178,2]
[336986005,1725276643040,-500.0,0.00019178,2]
[336986006,1725276643050,-608.8,0.00019178,2]
[336986007,1725276643059,-500.0,0.00019178,2]
[336986008,1725276643069,-500.0,0.00019178,2]
[336986009,1725276643079,-307.01189739,0.00019178,2]
[336986010,1725276643088,-500.0,0.00019178,2]
[336986011,1725276643276,-500.0,0.00019178,2]
[336986012,1725276643287,-500.0,0.00019178,2]
[336986013,1725276643296,-500.0,0.00019178,2]
[336986014,1725276643306,-500.0,0.00019178,2]
[336986015,1725276643316,-500.0,0.00019178,2]
[336986016,1725276643326,-500.0,0.00019178,2]
[336986017,1725276643337,-594.83559131,0.00019178,2]
[336986018,1725276643349,-513.04502564,0.00019178,2]